Workbook

Sheet NE（入力値と結果のみ）
A1: 各種パターンによる一体化長さの考え方【NS形E種管】 ：呼び径φ75～150 Ver 1.0
B3: 検討条件
B5: 検討したいパターン | F5: ③ | G5: 曲管の一体化長さ仮定値 [m] | K5: 7 | L5: =IF(AND(2.5<='NE（計算値や早見表）'!T44,'NE（計算値や早見表）'!T45<=0.01),"","一体化長さ仮定値を見直してください") -> 
B6: 呼び径 | E6: 本管側 | F6: 75 | G6: 曲管Aより既設管までの延長 [m] | K6: 7 | L6: =IF(F5="⑤","⇒ "&K6&"m","") -> 
E7: 支管側 | F7: 75 | G7: 複合曲管部の合成角度 [°] | I7: 曲管の角度 [°] | K7: 5.625
B8: 設計水圧 [MPa] | F8: 0.75 | I8: 両受曲管の角度 [°] | K8: 22.5
B9: 土被り [m] | F9: 0.6 | I9: 合成角度 [°] | K9: 28.125
B10: 管種 | F10: E種 | G10: 曲管Aの角度 [°] | K10: 5.625
B11: ポリエチレンスリーブの被覆 | F11: あり | G11: 曲管Bの角度 [°] | K11: 5.625
B12: 管と土の摩擦係数 | F12: =IF(F11="あり",0.3,0.4) -> 0.3 | G12: 曲管Cの角度 [°] | K12: 5.625
B13: 土の単位体積重量 [kN/m3] | F13: 16 | G13: 曲管Dの角度 [°] | K13: 5.625
B14: 既設管の接合形式 | F14: 一般継手 | G14: 曲管Eの角度 [°] | K14: 5.625
A17: 各種パターンによる一体化長さの考え方【NS形E種管】 ：呼び径φ75～150 Ver 1.0
C20: ※曲管の角度を変更しても管割図は変更されませんのでご注意下さい。
C21: ※複合曲管部の合成角度は、曲管を2個使用した場合の合成角度になりますが、3個以上使用する場合は、合成角度を直接入力して下さい。
F58: 曲管Aより既設
F59: 菅までの距離

Sheet NE（計算値や早見表） (hidden)
A1: 曲管およびT字管部の早見表 | M1: 片落管部の早見表（計算値） | Z1: 管端部および仕切弁部の早見表（計算値）
A2: 呼び径 | B2: 曲管部 | H2: T字管 | M2: 呼び径 | O2: 土被りh=0.6m | Q2: 土被りh=0.8m | S2: 土被りh=1.0m | U2: 土被りh=1.2m | W2: 土被りh=1.4m | Z2: 呼び径 | AA2: 土被りh=0.6m | AC2: 土被りh=0.8m | AE2: 土被りh=1.0m | AG2: 土被りh=1.2m | AI2: 土被りh=1.4m
B3: 22.5°以下 | D3: 22.5°を越え45°以下 | F3: 45°を越え90°以下 | O3: 水圧（MPa） | Q3: 水圧（MPa） | S3: 水圧（MPa） | U3: 水圧（MPa） | W3: 水圧（MPa） | AA3: 水圧（MPa） | AC3: 水圧（MPa） | AE3: 水圧（MPa） | AG3: 水圧（MPa） | AI3: 水圧（MPa）
B4: 設計水圧（MPa） | D4: 設計水圧（MPa） | F4: 設計水圧（MPa） | H4: 設計水圧（MPa） | M4: 大菅 | N4: 小管 | O4: 0.75 | P4: 1.3 | Q4: 0.75 | R4: 1.3 | S4: 0.75 | T4: 1.3 | U4: 0.75 | V4: 1.3 | W4: 0.75 | X4: 1.3 | AA4: 0.75 | AB4: 1.3 | AC4: 0.75 | AD4: 1.3 | AE4: 0.75 | AF4: 1.3 | AG4: 0.75 | AH4: 1.3 | AI4: 0.75 | AJ4: 1.3
B5: 0.75 | C5: 1.3 | D5: 0.75 | E5: 1.3 | F5: 0.75 | G5: 1.3 | H5: 0.75 | I5: 1.3 | M5: 100 | N5: 75 | O5: 3.5 | P5: 6 | Q5: 3 | R5: 4.5 | S5: 2.5 | T5: 4 | U5: 2 | V5: 3.5 | W5: 1.5 | X5: 3 | Z5: 75 | AA5: 7.5 | AB5: 12.5 | AC5: 5.5 | AD5: 9.5 | AE5: 4.5 | AF5: 8 | AG5: 4 | AH5: 6.5 | AI5: 3.5 | AJ5: 5.5
A6: 75 | B6: 1 | C6: 1 | D6: 1 | E6: 1 | F6: 1 | G6: 4 | H6: 1 | I6: 1 | M6: 150 | N6: 100 | O6: 6.5 | P6: 11 | Q6: 5 | R6: 8.5 | S6: 4 | T6: 7 | U6: 3.5 | V6: 6 | W6: 3 | X6: 5 | Z6: 100 | AA6: 9 | AB6: 15.5 | AC6: 7 | AD6: 12 | AE6: 5.5 | AF6: 9.5 | AG6: 5 | AH6: 8 | AI6: 4 | AJ6: 7
A7: 100 | B7: 1 | C7: 1 | D7: 1 | E7: 1 | F7: 1 | G7: 5 | H7: 1 | I7: 1 | M7: 200 | N7: 150 | O7: 6.5 | P7: 11 | Q7: 5 | R7: 8.5 | S7: 4 | T7: 7 | U7: 3.5 | V7: 6 | W7: 3 | X7: 5.5 | Z7: 150 | AA7: 12.5 | AB7: 21 | AC7: 9.5 | AD7: 16.5 | AE7: 8 | AF7: 13.5 | AG7: 6.5 | AH7: 11.5 | AI7: 6 | AJ7: 10
A8: 150 | B8: 1 | C8: 1 | D8: 1 | E8: 1 | F8: 4 | G8: 6 | H8: 1 | I8: 6 | M8: 250 | N8: 200 | O8: 6.5 | P8: 11 | Q8: 5 | R8: 8.5 | S8: 4.5 | T8: 7 | U8: 3.5 | V8: 6 | W8: 3 | X8: 5.5 | Z8: 200 | AA8: 15.5 | AB8: 26.5 | AC8: 12 | AD8: 20.5 | AE8: 10 | AF8: 17 | AG8: 8.5 | AH8: 14.5 | AI8: 7 | AJ8: 12
A9: 200 | B9: 1 | C9: 1 | D9: 1 | E9: 1 | F9: 4 | G9: 8 | H9: 1 | I9: 6 | M9: 300 | N9: 100 | O9: 18 | P9: 31.5 | Q9: 14.5 | R9: 25 | S9: 12 | T9: 20.5 | U9: 10.5 | V9: 17.5 | W9: 9 | X9: 15.5 | Z9: 250 | AA9: 18.5 | AB9: 31.5 | AC9: 14.5 | AD9: 25 | AE9: 12 | AF9: 20.5 | AG9: 10 | AH9: 17.5 | AI9: 9 | AJ9: 15
A10: 250 | B10: 1 | C10: 1 | D10: 1 | E10: 2 | F10: 6 | G10: 11 | H10: 2 | I10: 7 | M10: 300 | N10: 150 | O10: 15.5 | P10: 26.5 | Q10: 12 | R10: 21 | S10: 10 | T10: 17.5 | U10: 8.5 | V10: 15 | W10: 7.5 | X10: 13 | Z10: 300 | AA10: 21 | AB10: 36 | AC10: 16.5 | AD10: 28.5 | AE10: 14 | AF10: 24 | AG10: 12 | AH10: 20.5 | AI10: 10.5 | AJ10: 17.5
A11: 300 | B11: 1 | C11: 2 | D11: 1 | E11: 7 | F11: 7 | G11: 16 | H11: 7 | I11: 13 | M11: 300 | N11: 200 | O11: 11.5 | P11: 19.5 | Q11: 9 | R11: 15.5 | S11: 7.5 | T11: 13 | U11: 6.5 | V11: 11 | W11: 5.5 | X11: 9.5
M12: 300 | N12: 250 | O12: 6.5 | P12: 10.5 | Q12: 5 | R12: 8.5 | S12: 4 | T12: 7 | U12: 3.5 | V12: 6 | W12: 3 | X12: 5.5
Z14: 備考）1．計算条件は以下の通りである。
A15: 注）1．単独曲管部では曲管の両側に一体化長さを確保する。 | M15: 備考）1．土被りは大管側の土被りとした。 | Z15: ①土の単位体積重量：16kNm
A16: 2．枝管の呼び径で判断し、枝管側に表中の一体化長さを確保する。なお、本管側の一体化長さは呼び径によらず両側とも１ｍとする。 | M16: 2．一体化長さは大菅側のみ確保する長さである。 | Z16: ②管と土の摩擦係数：0.3
A17: 備考）1．適用条件は以下の通りである。 | M17: 3．計算条件は以下の通りである。 | Z17: 2．計算結果は0.5m単位で切り上げた。
A18: ①設計水圧：1.3MPa | M18: ①土の単位体積重量：16kNm
A19: ②土被り：0.6m以上 | M19: ②管と土の摩擦係数：0.3
A20: ③埋戻し条件：一般的な埋め戻しでN値5以上の締固め。 | M20: 4．計算結果は0.5m単位で切り上げた。
A21: 2．計算結果は0.5m単位で切り上げた。
A22: 3．表中の設計水圧は、0.75MPaは0.75MPa以下の場合、1.3MPa以下の場合、1.3MPaは0.75MPaを越え、
A23: 1.3MPa以下の場に適用する。なお、設計水圧は、静水圧と水撃圧を加えたものとする。 | Z23: 管端部および仕切弁部の早見表（計算値）
A24: 4．曲管が2個以上の曲管部で90°を越え、112.5°以下の角度であれば、表の45°を越え、90°以下の曲管部の一体化長さをそのまま適用できる。 | M24: 片落管部の早見表（厳密な計算値） | Z24: 呼び径 | AA24: 土被りh=0.6m | AC24: 土被りh=0.8m | AE24: 土被りh=1.0m | AG24: 土被りh=1.2m | AI24: 土被りh=1.4m
A25: 但し、112.5°を越える角度については管端部の一体化長さを適用する。 | M25: 呼び径 | O25: 土被りh=0.6m | Q25: 土被りh=0.8m | S25: 土被りh=1.0m | U25: 土被りh=1.2m | W25: 土被りh=1.4m | AA25: 水圧（MPa） | AC25: 水圧（MPa） | AE25: 水圧（MPa） | AG25: 水圧（MPa） | AI25: 水圧（MPa）
A26: 5．管には必ずポリエチレンスリーブを施工する。 | O26: 水圧（MPa） | Q26: 水圧（MPa） | S26: 水圧（MPa） | U26: 水圧（MPa） | W26: 水圧（MPa） | AA26: 0.75 | AB26: 1.3 | AC26: 0.75 | AD26: 1.3 | AE26: 0.75 | AF26: 1.3 | AG26: 0.75 | AH26: 1.3 | AI26: 0.75 | AJ26: 1.3
M27: 大菅 | N27: 小管 | O27: 0.75 | P27: 1.3 | Q27: 0.75 | R27: 1.3 | S27: 0.75 | T27: 1.3 | U27: 0.75 | V27: 1.3 | W27: 0.75 | X27: 1.3 | Z27: 75 | AA27: 7.02399942 | AB27: 12.17493233 | AC27: 5.364460278 | AD27: 9.298397815 | AE27: 4.339240922 | AF27: 7.521350932 | AG27: 3.643012936 | AH27: 6.314555756 | AI27: 3.139312565 | AJ27: 5.441475112
M28: 100 | N28: 75 | O28: 3.312265109 | P28: 5.741259522 | Q28: 2.541074164 | R28: 4.40452855 | S28: 2.061173472 | T28: 3.572700684 | U28: 1.733743214 | V28: 3.005154904 | W28: 1.496081362 | X28: 2.593207693 | Z28: 100 | AA28: 8.743124052 | AB28: 15.15474836 | AC28: 6.707472352 | AD28: 11.62628541 | AE28: 5.440716478 | AF28: 9.430575228 | AG28: 4.576424742 | AH28: 7.932469553 | AI28: 3.94908756 | AJ28: 6.845085104
M29: 150 | N29: 100 | O29: 6.178200005 | P29: 10.70888001 | Q29: 4.781207352 | R29: 8.287426077 | S29: 3.899472479 | T29: 6.75908563 | U29: 3.292314444 | V29: 5.706678369 | W29: 2.848755745 | X29: 4.937843291 | Z29: 150 | AA29: 12.05544649 | AB29: 20.89610726 | AC29: 9.32951173 | AD29: 16.17115366 | AE29: 7.6089932 | AF29: 13.18892155 | AG29: 6.424253114 | AH29: 11.13537206 | AI29: 5.558742422 | AJ29: 9.635153531
A32: ① | E32: ② | I32: ③ | M32: ④ | Q32: ⑤ | U32: ⑥ | Y32: ⑦
D34: VLOOK用 | H34: VLOOK用 | L34: VLOOK用 | P34: VLOOK用 | T34: VLOOK用 | X34: VLOOK用 | AB34: VLOOK用
A35: 呼び径 | B35: ='NE（入力値と結果のみ）'!F6 -> 75 | E35: 呼び径 | F35: ='NE（入力値と結果のみ）'!F6 -> 75 | I35: 呼び径 | J35: ='NE（入力値と結果のみ）'!F6 -> 75 | M35: 呼び径 | N35: ='NE（入力値と結果のみ）'!F7 -> 75 | Q35: 呼び径 | R35: ='NE（入力値と結果のみ）'!F6 -> 75 | U35: 呼び径 | V35: ='NE（入力値と結果のみ）'!F7 -> 75 | Y35: 呼び径 | Z35: ='NE（入力値と結果のみ）'!F7 -> 75
A36: 土被り | B36: =ROUNDDOWN('NE（入力値と結果のみ）'!$F$9,1) -> 0.6 | C36: → | D36: =IF(AND(0.6<=B36,B36<0.8),0,IF(AND(0.8<=B36,B36<1),2,IF(AND(1<=B36,B36<1.2),4,IF(AND(1.2<=B36,B36<1.4),6,IF(AND(B36=1.4),8))))) -> 0 | E36: 合成角度 | F36: ='NE（入力値と結果のみ）'!K9 -> 28.125 | G36: → | H36: =IF(AND(F36<=22.5),3,IF(AND(22.5<F36,F36<=45),5,IF(AND(45<F36,F36<112.5),7,))) -> 5 | I36: 土被り | J36: =ROUNDDOWN('NE（入力値と結果のみ）'!$F$9,1) -> 0.6 | K36: → | L36: =IF(AND(0.6<=J36,J36<0.8),0,IF(AND(0.8<=J36,J36<1),2,IF(AND(1<=J36,J36<1.2),4,IF(AND(1.2<=J36,J36<1.4),6,IF(AND(J36=1.4),8))))) -> 0 | M36: 設計水圧 | N36: ='NE（入力値と結果のみ）'!F8 -> 0.75 | O36: → | P36: =IF(AND(N36<=0.75),3,4) -> 3 | Q36: 曲管Aの角度 | R36: ='NE（入力値と結果のみ）'!K10 -> 5.625 | S36: → | T36: =IF(AND(R36<=22.5),3,IF(AND(22.5<R36,R36<=45),5,IF(AND(45<R36,R36<112.5),7,))) -> 3 | U36: 曲管Bの角度 | V36: ='NE（入力値と結果のみ）'!K11 -> 5.625 | W36: → | X36: =IF(AND(V36<=22.5),3,IF(AND(22.5<V36,V36<=45),5,IF(AND(45<V36,V36<112.5),7,))) -> 3 | Y36: 曲管Dの角度 | Z36: ='NE（入力値と結果のみ）'!K13 -> 5.625 | AA36: → | AB36: =IF(AND(Z36<=22.5),3,IF(AND(22.5<Z36,Z36<=45),5,IF(AND(45<Z36,Z36<112.5),7,))) -> 3
A37: 摩擦係数 | B37: ='NE（入力値と結果のみ）'!$F$12 -> 0.3 | C37: → | D37: =IF(AND(B37=0.3),3,13) -> 3 | E37: 設計水圧 | F37: ='NE（入力値と結果のみ）'!F8 -> 0.75 | G37: → | H37: =IF(AND(F37<=0.75),0,1) -> 0 | I37: 摩擦係数 | J37: ='NE（入力値と結果のみ）'!$F$12 -> 0.3 | K37: → | L37: =IF(AND(J37=0.3),3,13) -> 3 | Q37: 設計水圧 | R37: ='NE（入力値と結果のみ）'!F8 -> 0.75 | S37: → | T37: =IF(AND(R37<=0.75),0,1) -> 0 | U37: 設計水圧 | V37: ='NE（入力値と結果のみ）'!F8 -> 0.75 | W37: → | X37: =IF(AND(V37<=0.75),0,1) -> 0 | Y37: 設計水圧 | Z37: ='NE（入力値と結果のみ）'!F8 -> 0.75 | AA37: → | AB37: =IF(AND(Z37<=0.75),0,1) -> 0
A38: 設計水圧 | B38: ='NE（入力値と結果のみ）'!F8 -> 0.75 | C38: → | D38: =IF(AND(B38<=0.75),0,1) -> 0 | H38: ↓ | I38: 設計水圧 | J38: ='NE（入力値と結果のみ）'!F8 -> 0.75 | K38: → | L38: =IF(AND(J38<=0.75),0,1) -> 0 | M38: 一体化長さ | P38: =VLOOKUP(N35,'T字管の早見表（JDPA T57 P20） '!4:9,P36,FALSE) -> 1 | T38: ↓ | X38: ↓ | AB38: ↓
D39: ↓ | H39: =H35+H36+H37 -> 5 | L39: ↓ | O39: 表示用 | P39: =IF('NE（入力値と結果のみ）'!F5="④","Lp = "&P38&"m","") ->  | T39: =T35+T36+T37 -> 3 | X39: =X35+X36+X37 -> 3 | AB39: =AB35+AB36+AB37 -> 3
D40: =D36+D37+D38 -> 3 | L40: =L36+L37+L38 -> 3
D41: 元のD42=VLOOKUP(B35,'管端部および仕切弁部の早見表（JDPA T57 P49）'!6:11,D40,FALSE) | E41: 一体化長さ（合成角度112.5度以下） | H41: =VLOOKUP(F35,'曲管の早見表（JDPA T57 P20）'!5:10,H39,FALSE) -> 1 | L41: 元のL42＝VLOOKUP(J35,'管端部および仕切弁部の早見表（JDPA T57 P49）'!6:11,L40,FALSE) | O41: 表示用 | P41: =IF('NE（入力値と結果のみ）'!F5="④","Lp =1m","") ->  | Q41: 一体化長さ | T41: =VLOOKUP(R35,'曲管の早見表（JDPA T57 P20）'!5:10,T39,FALSE) -> 1 | U41: 一体化長さ | X41: =VLOOKUP(V35,'曲管の早見表（JDPA T57 P20）'!5:10,X39,FALSE) -> 1 | Y41: 一体化長さ | AB41: =VLOOKUP(Z35,'曲管の早見表（JDPA T57 P20）'!5:10,AB39,FALSE) -> 1
A42: 一体化長さ | D42: =CEILING(B65,0.5) -> 7.5 | E42: 一体化長さ（合成角度112.5度超える） | H42: =D42 -> 7.5 | I42: 一体化長さ | L42: =CEILING(J65,0.5) -> 7.5 | S42: 表示用 | T42: =IF('NE（入力値と結果のみ）'!F5="⑤","Lp = "&T41&"m","") ->  | W42: 表示用 | X42: =IF('NE（入力値と結果のみ）'!F5="⑥","Lp = "&X41&"m","") ->  | AA42: 表示用 | AB42: =IF('NE（入力値と結果のみ）'!F5="⑦","Lp = "&AB41&"m","") -> 
C43: 表示用 | D43: =IF('NE（入力値と結果のみ）'!F5="①","Lp = "&D42&"m","") ->  | K43: 表示用 | L43: =IF('NE（入力値と結果のみ）'!F5="③","Lp = "&L42&"m","") -> Lp = 7.5m | S43: 表示用（管端側、耐震継手の場合） | T43: =IF(AND('NE（入力値と結果のみ）'!F5="⑤",'NE（入力値と結果のみ）'!F14="耐震継手"),"Lp = "&T41&"m","") -> 
E44: 一体化長さ | H44: =IF(AND(F36<=112.5),H41,H42) -> 1 | Q44: 継手の安全性 | T44: =計算による従来の一体化長さ!E65 -> 53.23746251 | U44: 呼び径 | V44: ='NE（入力値と結果のみ）'!F7 -> 75 | Y44: 呼び径 | Z44: ='NE（入力値と結果のみ）'!F7 -> 75
G45: 表示用 | H45: =IF('NE（入力値と結果のみ）'!F5="②","Lp = "&H44&"m","") ->  | I45: 呼び径 | J45: ='NE（入力値と結果のみ）'!F7 -> 75 | Q45: 曲管部の移動量 | T45: =計算による従来の一体化長さ!E71 -> 0.0003802440748 | U45: 曲管Cの角度 | V45: ='NE（入力値と結果のみ）'!K12 -> 5.625 | W45: → | X45: =IF(AND(V45<=22.5),3,IF(AND(22.5<V45,V45<=45),5,IF(AND(45<V45,V45<112.5),7,))) -> 3 | Y45: 曲管Eの角度 | Z45: ='NE（入力値と結果のみ）'!K14 -> 5.625 | AA45: → | AB45: =IF(AND(Z45<=22.5),3,IF(AND(22.5<Z45,Z45<=45),5,IF(AND(45<Z45,Z45<112.5),7,))) -> 3
I46: 設計水圧 | J46: ='NE（入力値と結果のみ）'!F8 -> 0.75 | K46: → | L46: =IF(AND(J46<=0.75),3,4) -> 3 | U46: 設計水圧 | V46: ='NE（入力値と結果のみ）'!F8 -> 0.75 | W46: → | X46: =IF(AND(V46<=0.75),0,1) -> 0 | Y46: 設計水圧 | Z46: ='NE（入力値と結果のみ）'!F8 -> 0.75 | AA46: → | AB46: =IF(AND(Z46<=0.75),0,1) -> 0
Q47: 計算による一体化長さ | T47: =IF(AND(2.5<=T44,T45<0.01),計算による従来の一体化長さ!E41,"NG") -> 7 | X47: ↓ | AB47: ↓
I48: 一体化長さ | L48: =VLOOKUP(J45,'T字管の早見表（JDPA T57 P20） '!4:9,L46,FALSE) -> 1 | X48: =X44+X45+X46 -> 3 | AB48: =AB44+AB45+AB46 -> 3
K49: 表示用 | L49: =IF('NE（入力値と結果のみ）'!F5="③","Lp = "&L48&"m","") -> Lp = 1m | Q49: 既設管までの距離を比較する 一体化長さ | T49: =IF(AND(T47<=2*T41),T47,2*T41) -> 2
U50: 一体化長さ | X50: =VLOOKUP(V44,'曲管の早見表（JDPA T57 P20）'!5:10,X48,FALSE) -> 1 | Y50: 一体化長さ | AB50: =VLOOKUP(Z44,'曲管の早見表（JDPA T57 P20）'!5:10,AB48,FALSE) -> 1
W51: 表示用 | X51: =IF('NE（入力値と結果のみ）'!F5="⑥","Lp = "&X50&"m","") ->  | AA51: 表示用 | AB51: =IF('NE（入力値と結果のみ）'!F5="⑦","Lp = "&AB50&"m","") -> 
Q52: 既設管側の一体化長さ | T52: =IF(AND(T49<'NE（入力値と結果のみ）'!K6),"Lp ="&'NE（計算値や早見表）'!T41&"m","") -> Lp =1m
A53: 2018.03.16 光森 | I53: 2018.03.16 光森 | S53: 表示用 | T53: =IF('NE（入力値と結果のみ）'!F5="⑤",T52,"") -> 
A54: 管端部および仕切弁部の一体化長さ（計算値） | I54: 管端部および仕切弁部の一体化長さ（計算値） | T54: =IF(AND(T49<'NE（入力値と結果のみ）'!K6),"","曲管部に防護コンクリートを打設して下さい") -> 
A55: 呼び径 | B55: ='NE（入力値と結果のみ）'!F6 -> 75 | I55: 呼び径 | J55: ='NE（入力値と結果のみ）'!$F$6 -> 75 | S55: 表示用 | T55: =IF(AND('NE（入力値と結果のみ）'!F5="⑤",OR('NE（入力値と結果のみ）'!F14="一般継手",'NE（入力値と結果のみ）'!F14="不明・その他")),T54,"") -> 
A56: 管外径 | B56: =IF(B55=75,0.093,IF(B55=100,0.118,IF(B55=150,0.169,IF(B55=200,0.22,IF(B55=250,0.2716,IF(B55=300,0.3228,0.4256)))))) -> 0.093 | C56: m | I56: 管外径 | J56: =IF(B55=75,0.093,IF(B55=100,0.118,IF(B55=150,0.169,IF(B55=200,0.22,IF(B55=250,0.2716,IF(B55=300,0.3228,0.4256)))))) -> 0.093
A57: 設計水圧 | B57: ='NE（入力値と結果のみ）'!F8 -> 0.75 | C57: MPa | I57: 設計水圧 | J57: ='NE（入力値と結果のみ）'!$F$8 -> 0.75
A58: 土被り | B58: ='NE（入力値と結果のみ）'!F9 -> 0.6 | C58: m | I58: 土被り | J58: ='NE（入力値と結果のみ）'!$F$9 -> 0.6
A59: 摩擦係数 | B59: ='NE（入力値と結果のみ）'!F12 -> 0.3 | I59: 摩擦係数 | J59: ='NE（入力値と結果のみ）'!$F$12 -> 0.3
A60: 単位体積重量 | B60: ='NE（入力値と結果のみ）'!F13 -> 16 | C60: kN/m3 | I60: 単位体積重量 | J60: ='NE（入力値と結果のみ）'!$F$13 -> 16
A61: 安全率 | B61: 1.25 | I61: 安全率 | J61: 1.25
A63: (1)P | B63: =(PI()/4)*B56^2*B57*1000 -> 5.094681536 | C63: kN | I63: (1)P | J63: =(PI()/4)*J56^2*J57*1000 -> 5.094681536
A64: (2)Wf | B64: =B60*(B58+B56/2) -> 10.344 | C64: kN/m2 | I64: (2)Wf | J64: =J60*(J58+J56/2) -> 10.344
A65: (3)Lp | B65: =(B61*B63)/(B59*B64*PI()*B56) -> 7.02399942 | C65: m | I65: (3)Lp | J65: =(J61*J63)/(J59*J64*PI()*J56) -> 7.02399942

Sheet 計算による従来の一体化長さ (hidden)
A1: NS・S形ダクタイル鉄管管路の設計（P35）
D3: VLOOK用
A4: 呼び径 | B4: ='NE（入力値と結果のみ）'!F6 -> 75
A5: 曲管Aの角度 | B5: ='NE（入力値と結果のみ）'!K10 -> 5.625 | C5: → | D5: =IF(AND(B5<=22.5),3,IF(AND(22.5<B5,B5<=45),5,IF(AND(45<B5,B5<112.5),7,))) -> 3
A6: 設計水圧 | B6: ='NE（入力値と結果のみ）'!F8 -> 0.75 | C6: → | D6: =IF(AND(B6<=0.75),0,1) -> 0
D7: ↓
D8: =D4+D5+D6 -> 3
A9: 一体化長さ | D9: =VLOOKUP(B4,'曲管の早見表（JDPA T57 P20）'!5:10,D8,FALSE) -> 1 | G9: 技術資料の（）内の番号に対応
G10: ↓
A11: これより下が計算による従来の一体化長さ
A14: 菅外径 | D14: D2 | E14: =VLOOKUP(B4,菅外径と管厚と継手の限界曲げモーメント!A3:B8,2,FALSE) -> 0.093
A15: 管の断面積 | E15: =0.25*PI()*E14^2 -> 0.006792908715
A16: ①曲管部に作用する不平均力 | E16: =2*計算による従来の一体化長さ!B6*1000*E15*SIN((計算による従来の一体化長さ!B5*PI()/180)/2) -> 0.4999683489 | G16: (1)
A19: 管種 | B19: ='NE（入力値と結果のみ）'!F10 -> E種 | E19: =IF(AND(B19="1種"),3,4) -> 4
A20: 公称管厚 | D20: T | E20: 0.0045
A21: 公称管厚≦0.01mmの場合の計算管厚 | E21: =(VLOOKUP(B4,菅外径と管厚と継手の限界曲げモーメント!A3:D8,E19,FALSE))-0.001 -> 0.005 | G21: (2)
A22: 公称管厚>0.01mmの場合の計算管厚 | E22: =(VLOOKUP(B4,菅外径と管厚と継手の限界曲げモーメント!A3:D8,E19,FALSE))/1.1 -> 0.005454545455 | G22: (3)
A23: ②計算管厚 | D23: t | E23: 0.0038
A26: 土の単位体積重量 | D26: γs | E26: ='NE（入力値と結果のみ）'!F13 -> 16
A27: 土被り | D27: h | E27: ='NE（入力値と結果のみ）'!F9 -> 0.6
A28: 有効土被り | D28: hs | E28: =E27+(E14/2) -> 0.6465
A29: ③土被りによる土圧 | D29: Wf | E29: =E26*E28 -> 10.344 | G29: (4)
A32: 地盤反力係数 | D32: k | E32: 3000
A33: 管外径 | D33: D2 | E33: =E14 -> 0.093
A34: 管内径 | D34: D1 | E34: =E33-2*E23 -> 0.0854
A35: ダクタイル鋳鉄の弾性係数 | D35: E | E35: =1.6*10^8 -> 160000000
A36: 管の鉄部の弾性二次モーメント | D36: I | E36: =PI()/64*(E33^4-E34^4) -> 1.061024725e-06
A37: β | E37: =(E32*E33/4/E35/E36)^(1/4) -> 0.8006167671 | G37: (6)
A38: 管の鉄部の断面積 | D38: A1 | E38: =PI()/4*(E33^2-E34^2) -> 0.001064874246
A39: 管と土の摩擦係数 | D39: μ | E39: ='NE（入力値と結果のみ）'!F12 -> 0.3
A40: α | E40: =E38*E35*E39*E29*PI() -> 1661031.795
A41: 仮定した一体化長さ | D41: Lp | E41: ='NE（入力値と結果のみ）'!K5 -> 7
A42: cosh(2βLp) | E42: =COSH(2*E37*E41) -> 36882.31915
A43: cos(2βLp) | E43: =COS(2*E37*E41) -> 0.2114521357
A44: sinh(2βLp) | E44: =SINH(2*E37*E41) -> 36882.31913
A45: sin(2βLp) | E45: =SIN(2*E37*E41) -> -0.9773883539
A46: X | E46: =(E42+E43+2)/(E44+E45) -> 1.000086463 | G46: (7)
A47: βαX*(1/k) | E47: =E37*E40*E46/E32 -> 443.3216293
A48: tan（θ/2） | E48: =TAN(PI()/180*B5/2) -> 0.04912684977
A49: cos（θ/2） | E49: =COS(PI()/180*B5/2) -> 0.9987954562
A50: ④管軸方向に作用する力 （1） | D50: P2 | E50: =-(E47*E48^2)+((E47*E48^2)^2+(E16*E47*E48/E49))^(0.5) -> 2.400901869 | G50: (5)
A52: ⑤管と土の摩擦力から計算される一体化長さ | D52: Lp1 | E52: =E50/(E39*E29*PI()*E33) -> 2.648084393 | G52: (9)
A54: Lp≧Lp1の場合のP2 | E54: =E50 -> 2.400901869
A55: Lp<Lp1の場合のP3 | E55: =E39*E29*PI()*E33*E41 -> 6.3465927
A56: ⑥管軸方向に作用する力 （2） | D56: P2 | E56: =IF(AND(E41>=E52),E54,E55) -> 2.400901869
A58: ⑦管軸直角方向に作用する力 | D58: P1 | E58: =(E16/2/E49)-E56*E48 -> 0.1323369091 | G58: (11)
A60: Y | E60: =(E42-E43)/(E44+E45) -> 1.000020768
A61: ⑧発生曲げモーメント | D61: M | E61: =E58*E60/2/E37 -> 0.08264856724 | G61: (12)
A63: 継手の限界曲げモーメント | D63: M0' | E63: =VLOOKUP(B4,菅外径と管厚と継手の限界曲げモーメント!A3:E8,5,FALSE) -> 4.4
A64: 計算に用いる限界曲げモーメント | D64: M0 | E64: =E63 -> 4.4
A65: ⑨曲げモーメントに対する継手の安全率 | D65: Sf | E65: =E64/E61 -> 53.23746251 | G65: (13)
A68: ⑩曲管部の移動量 | D68: δ1 | E68: =E58*E37*E46/E32/E33 -> 0.0003797860541 | G68: (14)
A71: 不平均力P方向の曲管部の移動量 | D71: δ | E71: =E68/E49 -> 0.0003802440748 | G71: (15) | I71: (8)、(10)は不要

Sheet 計算による従来の一体化長さ手順 (hidden)

Sheet 菅外径と管厚と継手の限界曲げモーメント (hidden)
A1: 1 | B1: 2 | C1: 3 | D1: 4 | E1: 5
A2: 呼び径 | B2: 管外径（m） | C2: 1種公称管厚（m） | D2: S種公称管厚（m） | E2: 継手の限界曲げモーメント
A3: 75 | B3: 0.093 | C3: 0.0075 | D3: 0.006 | E3: 4.4
A4: 100 | B4: 0.118 | C4: 0.0075 | D4: 0.006 | E4: 7.4
A5: 150 | B5: 0.169 | C5: 0.0075 | D5: 0.0065 | E5: 17
A6: 200 | B6: 0.22 | C6: 0.0075 | D6: 0.0065 | E6: 24
A7: 250 | B7: 0.2716 | C7: 0.0075 | D7: 0.0065 | E7: 35
A8: 300 | B8: 0.3228 | C8: 0.0075 | D8: 0.007 | E8: 64

Sheet 曲管の早見表（JDPA T57 P20） (hidden)
A1: 1 | B1: 2 | C1: 3 | D1: 4 | E1: 5 | F1: 6 | G1: 7 | H1: 8
A2: 呼び径 | C2: 22.5°以下 | E2: 22.5°を越え45°以下 | G2: 45°を越え90°以下
C3: 設計水圧（MPa） | E3: 設計水圧（MPa） | G3: 設計水圧（MPa）
C4: 0.75 | D4: 1.3 | E4: 0.75 | F4: 1.3 | G4: 0.75 | H4: 1.3
A5: 75 | C5: 1 | D5: 1 | E5: 1 | F5: 1 | G5: 1 | H5: 4
A6: 100 | C6: 1 | D6: 1 | E6: 1 | F6: 1 | G6: 1 | H6: 4 | I6: →NEは4
A7: 150 | C7: 1 | D7: 1 | E7: 1 | F7: 1 | G7: 4 | H7: 6
A8: 200 | C8: 1 | D8: 1 | E8: 1 | F8: 1 | G8: 4 | H8: 8
A9: 250 | C9: 1 | D9: 1 | E9: 1 | F9: 2 | G9: 6 | H9: 11
A10: 300 | C10: 1 | D10: 2 | E10: 1 | F10: 7 | G10: 7 | H10: 16

Sheet T字管の早見表（JDPA T57 P20） (hidden)
A1: 1 | B1: 2 | C1: 3 | D1: 4
A2: 呼び径 | C2: 設計水圧（MPa）
C3: 0.75 | D3: 1.3
A4: 75 | C4: 1 | D4: 1
A5: 100 | C5: 1 | D5: 1
A6: 150 | C6: 1 | D6: 6
A7: 200 | C7: 1 | D7: 6
A8: 250 | C8: 2 | D8: 7
A9: 300 | C9: 7 | D9: 13

Sheet 管端部および仕切弁部の早見表（JDPA T57 P49） (hidden)
A1: 1 | B1: 2 | C1: 3 | D1: 4 | E1: 5 | F1: 6 | G1: 7 | H1: 8 | I1: 9 | J1: 10 | K1: 11 | L1: 12 | M1: 13 | N1: 14 | O1: 15 | P1: 16 | Q1: 17 | R1: 18 | S1: 19 | T1: 20 | U1: 21 | V1: 22
A2: 管摩擦係数 | C2: 0.3 | D2: 0.3 | E2: 0.3 | F2: 0.3 | G2: 0.3 | H2: 0.3 | I2: 0.3 | J2: 0.3 | K2: 0.3 | L2: 0.3 | M2: 0.4 | N2: 0.4 | O2: 0.4 | P2: 0.4 | Q2: 0.4 | R2: 0.4 | S2: 0.4 | T2: 0.4 | U2: 0.4 | V2: 0.4
A3: 土被り [m] | C3: 0.6 | D3: 0.6 | E3: 0.8 | F3: 0.8 | G3: 1 | H3: 1 | I3: 1.2 | J3: 1.2 | K3: 1.4 | L3: 1.4 | M3: 0.6 | N3: 0.6 | O3: 0.8 | P3: 0.8 | Q3: 1 | R3: 1 | S3: 1.2 | T3: 1.2 | U3: 1.4 | V3: 1.4
A4: 呼び径 | C4: 設計水圧（MPa） | E4: 設計水圧（MPa） | G4: 設計水圧（MPa） | I4: 設計水圧（MPa） | K4: 設計水圧（MPa） | M4: 設計水圧（MPa） | O4: 設計水圧（MPa） | Q4: 設計水圧（MPa） | S4: 設計水圧（MPa） | U4: 設計水圧（MPa）
C5: 0.75 | D5: 1.3 | E5: 0.75 | F5: 1.3 | G5: 0.75 | H5: 1.3 | I5: 0.75 | J5: 1.3 | K5: 0.75 | L5: 1.3 | M5: 0.75 | N5: 1.3 | O5: 0.75 | P5: 1.3 | Q5: 0.75 | R5: 1.3 | S5: 0.75 | T5: 1.3 | U5: 0.75 | V5: 1.3
A6: 75 | C6: 7.5 | D6: 12.5 | E6: 5.5 | F6: 9.5 | G6: 4.5 | H6: 8 | I6: 4 | J6: 6.5 | K6: 3.5 | L6: 5.5 | M6: 5.5 | N6: 9.5 | O6: 4.5 | P6: 7 | Q6: 3.5 | R6: 6 | S6: 3 | T6: 5 | U6: 2.5 | V6: 4.5
A7: 100 | C7: 9 | D7: 15.5 | E7: 7 | F7: 12 | G7: 5.5 | H7: 9.5 | I7: 5 | J7: 8 | K7: 4 | L7: 7 | M7: 7 | N7: 11.5 | O7: 5.5 | P7: 9 | Q7: 4.5 | R7: 7.5 | S7: 3.5 | T7: 6 | U7: 3 | V7: 5.5
A8: 150 | C8: 12.5 | D8: 21 | E8: 9.5 | F8: 16.5 | G8: 8 | H8: 13.5 | I8: 6.5 | J8: 11.5 | K8: 6 | L8: 10 | M8: 9.5 | N8: 16 | O8: 7 | P8: 12.5 | Q8: 6 | R8: 10 | S8: 5 | T8: 8.5 | U8: 4.5 | V8: 7.5
A9: 200 | C9: 15.5 | D9: 26.5 | E9: 12 | F9: 20.5 | G9: 10 | H9: 17 | I9: 8.5 | J9: 14.5 | K9: 7 | L9: 12 | M9: 11.5 | N9: 20 | O9: 9 | P9: 15.5 | Q9: 7.5 | R9: 13 | S9: 6.5 | T9: 11 | U9: 5.5 | V9: 9.5
A10: 250 | C10: 18.5 | D10: 31.5 | E10: 14.5 | F10: 25 | G10: 12 | H10: 20.5 | I10: 10 | J10: 17.5 | K10: 9 | L10: 15 | M10: 14 | N10: 23.5 | O10: 11 | P10: 18.5 | Q10: 9 | R10: 15.5 | S10: 7.5 | T10: 13 | U10: 6.5 | V10: 11.5
A11: 300 | C11: 21 | D11: 36 | E11: 16.5 | F11: 28.5 | G11: 14 | H11: 24 | I11: 12 | J11: 20.5 | K11: 10.5 | L11: 17.5 | M11: 16 | N11: 27 | O11: 12.5 | P11: 21.5 | Q11: 10.5 | R11: 18 | S11: 9 | T11: 15.5 | U11: 8 | V11: 13.5

Sheet 片落管部の早見表（JDPA T57 P48） (hidden)
A1: 1 | B1: 2 | C1: 3 | D1: 4 | E1: 5 | F1: 6 | G1: 7 | H1: 8 | I1: 9 | J1: 10 | K1: 11 | L1: 12 | M1: 13 | N1: 14 | O1: 15 | P1: 16 | Q1: 17 | R1: 18 | S1: 19 | T1: 20 | U1: 21 | V1: 22 | W1: 23
A2: 管摩擦係数 | C2: 0.3 | D2: 0.3 | E2: 0.3 | F2: 0.3 | G2: 0.3 | H2: 0.3 | I2: 0.3 | J2: 0.3 | K2: 0.3 | L2: 0.3 | M2: 0.4 | N2: 0.4 | O2: 0.4 | P2: 0.4 | Q2: 0.4 | R2: 0.4 | S2: 0.4 | T2: 0.4 | U2: 0.4 | V2: 0.4
A3: 土被り [m] | C3: 0.6 | D3: 0.6 | E3: 0.8 | F3: 0.8 | G3: 1 | H3: 1 | I3: 1.2 | J3: 1.2 | K3: 1.4 | L3: 1.4 | M3: 0.6 | N3: 0.6 | O3: 0.8 | P3: 0.8 | Q3: 1 | R3: 1 | S3: 1.2 | T3: 1.2 | U3: 1.4 | V3: 1.4
A4: 呼び径 | C4: 設計水圧（MPa） | E4: 設計水圧（MPa） | G4: 設計水圧（MPa） | I4: 設計水圧（MPa） | K4: 設計水圧（MPa） | M4: 設計水圧（MPa） | O4: 設計水圧（MPa） | Q4: 設計水圧（MPa） | S4: 設計水圧（MPa） | U4: 設計水圧（MPa）
A5: 大菅 | B5: 小管 | C5: 0.75 | D5: 1.3 | E5: 0.75 | F5: 1.3 | G5: 0.75 | H5: 1.3 | I5: 0.75 | J5: 1.3 | K5: 0.75 | L5: 1.3 | M5: 0.75 | N5: 1.3 | O5: 0.75 | P5: 1.3 | Q5: 0.75 | R5: 1.3 | S5: 0.75 | T5: 1.3 | U5: 0.75 | V5: 1.3
A6: 100 | B6: 75 | C6: 3.5 | D6: 6 | E6: 3 | F6: 4.5 | G6: 2.5 | H6: 4 | I6: 2 | J6: 3.5 | K6: 1.5 | L6: 3 | M6: 2.5 | N6: 4.5 | O6: 2 | P6: 3.5 | Q6: 2 | R6: 3 | S6: 1.5 | T6: 2.5 | U6: 1.5 | V6: 2
A7: 150 | B7: 100 | C7: 6.5 | D7: 11 | E7: 5 | F7: 8.5 | G7: 4 | H7: 7 | I7: 3.5 | J7: 6 | K7: 3 | L7: 5 | M7: 5 | N7: 8.5 | O7: 4 | P7: 6.5 | Q7: 3 | R7: 5.5 | S7: 2.5 | T7: 4.5 | U7: 2.5 | V7: 4
A8: 200 | B8: 150 | C8: 6.5 | D8: 11 | E8: 5 | F8: 8.5 | G8: 4 | H8: 7 | I8: 3.5 | J8: 6 | K8: 3 | L8: 5.5 | M8: 5 | N8: 8.5 | O8: 4 | P8: 6.5 | Q8: 3 | R8: 5.5 | S8: 3 | T8: 4.5 | U8: 2.5 | V8: 4
A9: 250 | B9: 200 | C9: 6.5 | D9: 11 | E9: 5 | F9: 8.5 | G9: 4.5 | H9: 7 | I9: 3.5 | J9: 6 | K9: 3 | L9: 5.5 | M9: 5 | N9: 8.5 | O9: 4 | P9: 6.5 | Q9: 3.5 | R9: 5.5 | S9: 3 | T9: 4.5 | U9: 2.5 | V9: 4
A10: 300 | B10: 100 | C10: 18 | D10: 31.5 | E10: 14.5 | F10: 25 | G10: 12 | H10: 20.5 | I10: 10.5 | J10: 17.5 | K10: 9 | L10: 15.5 | M10: 13.5 | N10: 23.5 | O10: 11 | P10: 18.5 | Q10: 9 | R10: 15.5 | S10: 8 | T10: 13.5 | U10: 7 | V10: 11.5
A11: 300 | B11: 150 | C11: 15.5 | D11: 26.5 | E11: 12 | F11: 21 | G11: 10 | H11: 17.5 | I11: 8.5 | J11: 15 | K11: 7.5 | L11: 13 | M11: 11.5 | N11: 20 | O11: 9 | P11: 15.5 | Q11: 7.5 | R11: 13 | S11: 6.5 | T11: 11 | U11: 5.5 | V11: 10
A12: 300 | B12: 200 | C12: 11.5 | D12: 19.5 | E12: 9 | F12: 15.5 | G12: 7.5 | H12: 13 | I12: 6.5 | J12: 11 | K12: 5.5 | L12: 9.5 | M12: 8.5 | N12: 14.5 | O12: 7 | P12: 11.5 | Q12: 5.5 | R12: 9.5 | S12: 5 | T12: 8.5 | U12: 4.5 | V12: 7.5
A13: 300 | B13: 250 | C13: 6.5 | D13: 10.5 | E13: 5 | F13: 8.5 | G13: 4 | H13: 7 | I13: 3.5 | J13: 6 | K13: 3 | L13: 5.5 | M13: 5 | N13: 8 | O13: 4 | P13: 6.5 | Q13: 3 | R13: 5.5 | S13: 3 | T13: 4.5 | U13: 2.5 | V13: 4
